bitfinex-derivatives/quotes_BTCF0:USTF0_20241217
["timestamp","ask_amount","ask_price","bid_price","bid_amount"]
[1734446856277,6.646e-05,107840.0,107830.0,0.046367]
[1734446856478,6.646e-05,107840.0,107830.0,0.64521223]
[1734446856682,6.646e-05,107840.0,107830.0,0.94521223]
[1734446857474,1.05040048,107850.0,107830.0,0.94529014]
[1734446857682,1.05040048,107850.0,107840.0,0.64520723]
[1734446858391,1.05040048,107850.0,107840.0,0.94520723]
[1734446858982,1.05040048,107850.0,107840.0,0.64520723]
[1734446859179,0.47003618,107850.0,107840.0,0.94520723]
[1734446859382,0.47003618,107850.0,107840.0,0.94532486]
[1734446859588,0.31108818,107850.0,107840.0,0.94532486]
[1734446859882,0.05423091,107850.0,107840.0,0.94717945]
[1734446860089,9.1e-07,107850.0,107840.0,0.94717945]
[1734446860286,0.92302659,107870.0,107860.0,0.046354]
[1734446860482,0.87126409,107870.0,107860.0,1.0061073]
[1734446861097,0.87126409,107870.0,107860.0,0.72170807]
[1734446861281,1.27841309,107870.0,107860.0,0.00010807]
[1734446861483,0.046356,107860.0,107840.0,0.60069982]
[1734446861678,0.046356,107860.0,107840.0,0.23989982]
[1734446861884,0.407156,107860.0,107840.0,0.23989982]
[1734446862285,0.407156,107860.0,107840.0,0.01314302]
[1734446862488,0.046358,107850.0,107840.0,0.00185459]
[1734446862789,0.046364,107840.0,107820.0,0.05739903]
[1734446862986,0.046364,107840.0,107830.0,0.00010164]
[1734446863178,0.046367,107830.0,107820.0,0.01102903]
[1734446863383,0.046367,107830.0,107810.0,0.046374]
[1734446863584,0.407167,107830.0,107810.0,0.046374]
[1734446864279,0.407167,107830.0,107820.0,9.299e-05]
[1734446864480,1.68627556,107830.0,107820.0,9.299e-05]
[1734446864804,0.046371,107820.0,107800.0,0.29587903]
[1734446865293,0.046371,107820.0,107800.0,0.65667903]
[1734446865492,1.68618457,107830.0,107800.0,0.65667903]
[1734446865695,1.68618457,107830.0,107810.0,9.631e-05]
[1734446865897,1.49088457,107830.0,107810.0,0.28451654]
[1734446866194,0.730869,107830.0,107810.0,0.04647131]
[1734446866394,0.046371,107820.0,107810.0,9.631e-05]
[1734446866785,0.407171,107820.0,107810.0,9.631e-05]
[1734446867185,0.046371,107820.0,107810.0,9.631e-05]
[1734446867394,0.407171,107820.0,107810.0,9.631e-05]
[1734446867793,0.3608,107820.0,107790.0,0.046382]
[1734446868098,0.046377,107810.0,107790.0,0.046382]
[1734446868299,0.407177,107810.0,107790.0,0.046382]
[1734446868484,0.046377,107810.0,107790.0,0.046382]
[1734446868691,0.407177,107810.0,107800.0,7.936e-05]
[1734446869003,0.046377,107810.0,107800.0,7.936e-05]
[1734446869202,0.94522223,107810.0,107770.0,0.49197407]
[1734446869404,0.046384,107790.0,107780.0,0.046387]
[1734446869592,0.407184,107790.0,107780.0,0.046387]
[1734446869795,0.566381,107800.0,107780.0,0.28443223]
[1734446869994,0.566381,107800.0,107790.0,0.28442923]
[1734446869995,0.3608,107800.0,107790.0,0.28442923]
[1734446870294,0.407179,107800.0,107790.0,7.921e-05]
[1734446871289,0.707179,107800.0,107790.0,7.921e-05]
[1734446871490,0.046386,107790.0,107770.0,0.05778204]
[1734446871691,0.201886,107790.0,107770.0,0.05778204]
[1734446871903,0.046388,107780.0,107770.0,0.05778204]
[1734446872103,0.407188,107780.0,107770.0,0.05778204]
[1734446872402,0.211388,107780.0,107770.0,0.05788754]
[1734446872602,0.572188,107780.0,107770.0,0.05788754]
[1734446872792,0.572188,107780.0,107770.0,0.01149654]
[1734446873707,0.046396,107770.0,107750.0,0.046399]
[1734446873906,0.046396,107770.0,107740.0,0.48362879]
[1734446873907,0.407199,107760.0,107740.0,0.48362879]
[1734446874104,0.407199,107760.0,107740.0,0.046405]
[1734446874308,1.52793536,107760.0,107740.0,0.046405]
[1734446874504,1.52793536,107760.0,107740.0,0.05759499]
[1734446874708,1.16713036,107770.0,107750.0,0.64535784]
[1734446874911,1.12073636,107770.0,107760.0,0.046397]
[1734446875500,1.12073636,107770.0,107750.0,0.64535384]
[1734446875810,1.12073636,107770.0,107760.0,0.046397]
[1734446876195,0.046397,107760.0,107750.0,0.00011161]
[1734446876396,0.407197,107760.0,107750.0,0.00011161]
[1734446876707,0.407197,107760.0,107740.0,0.01118999]
[1734446876907,0.407197,107760.0,107720.0,0.84443579]
[1734446876908,0.407201,107750.0,107730.0,0.407209]
[1734446877304,0.046401,107750.0,107730.0,0.046409]
[1734446877807,0.407201,107750.0,107740.0,9.601e-05]
[1734446878101,1.48153636,107760.0,107740.0,9.601e-05]
[1734446878309,1.52793436,107760.0,107740.0,0.04650101]
[1734446878507,0.407198,107760.0,107740.0,0.56201824]
[1734446878703,0.3608,107760.0,107750.0,0.046401]
[1734446878903,0.3608,107760.0,107740.0,0.56201724]
[1734446879102,0.3608,107760.0,107740.0,0.40729801]
[1734446879717,0.3608,107760.0,107750.0,0.20111823]
[1734446879923,0.407195,107770.0,107750.0,0.407201]
[1734446880130,0.40771501,107770.0,107750.0,0.407201]
[1734446880313,0.407195,107770.0,107750.0,0.407201]
[1734446880623,1.69431752,107780.0,107760.0,0.56191323]
[1734446880823,1.64792852,107780.0,107770.0,0.046392]
[1734446881031,1.64792852,107780.0,107760.0,0.407195]
[1734446881323,1.69431752,107780.0,107760.0,0.407195]
[1734446881829,1.64792852,107780.0,107770.0,0.046392]
[1734446882215,0.52719216,107780.0,107770.0,0.046392]
[1734446883017,1.63703636,107790.0,107770.0,0.56190923]
[1734446883320,0.1555,107790.0,107780.0,0.407188]
[1734446883528,0.1624,107800.0,107780.0,0.51562796]
[1734446883718,0.1624,107800.0,107790.0,0.407184]
[1734446884616,0.16247127,107820.0,107800.0,0.046376]
[1734446884822,0.16247127,107820.0,107810.0,0.767975]
[1734446885230,7.127e-05,107820.0,107810.0,0.51551723]
[1734446885527,0.10875127,107830.0,107820.0,0.046371]
[1734446885823,0.10875127,107830.0,107820.0,0.407171]
[1734446886415,0.10875127,107830.0,107820.0,8.056e-05]
[1734446886723,1.12073636,107840.0,107820.0,0.56196879]
[1734446886918,1.12073636,107840.0,107820.0,0.40725156]
[1734446888031,1.12073636,107840.0,107830.0,0.046367]
[1734446888232,1.12073636,107840.0,107820.0,0.40724956]
[1734446888531,0.046367,107830.0,107820.0,8.056e-05]
[1734446888736,1.12073636,107830.0,107820.0,8.056e-05]
[1734446889026,0.00139144,107850.0,107820.0,0.56196579]
[1734446889232,0.00139144,107850.0,107840.0,0.3608]
[1734446889427,0.00139144,107850.0,107840.0,0.407162]
[1734446889625,1.1221278,107850.0,107840.0,0.3608]
[1734446889817,1.12073636,107850.0,107840.0,0.3608]
[1734446890017,1.12073636,107850.0,107840.0,0.407162]
[1734446890726,0.0001059,107860.0,107850.0,0.046358]
[1734446890928,0.0001059,107860.0,107840.0,0.40716]
[1734446891131,0.0001059,107860.0,107850.0,0.046358]
[1734446891425,1.68271449,107860.0,107840.0,0.407162]
[1734446891636,0.046358,107850.0,107830.0,0.407165]
[1734446891837,0.407158,107850.0,107830.0,0.407165]
[1734446892039,0.046367,107830.0,107820.0,0.37197498]
[1734446892331,0.046364,107840.0,107820.0,0.41834498]
[1734446892528,0.45353,107840.0,107820.0,0.37197498]
[1734446892724,0.407167,107830.0,107820.0,0.01117498]
[1734446893421,0.046367,107830.0,107820.0,0.01117498]
[1734446893827,1.65793636,107840.0,107820.0,0.21226221]
[1734446894027,1.29713636,107840.0,107830.0,0.046367]
[1734446894234,1.70429836,107840.0,107820.0,0.41834398]
[1734446894733,1.70429836,107840.0,107820.0,0.05754398]
[1734446894923,1.29713636,107840.0,107830.0,0.407167]
[1734446895122,0.0001059,107860.0,107840.0,0.046362]
[1734446895327,0.0001059,107860.0,107850.0,0.407158]
[1734446895525,0.0001059,107860.0,107850.0,0.767958]
[1734446895730,1.21275509,107870.0,107850.0,0.87642759]
[1734446895731,0.87126409,107870.0,107850.0,0.87642759]
[1734446895934,0.87126409,107870.0,107860.0,0.3608]
[1734446895935,0.91761409,107870.0,107860.0,0.3608]
[1734446896435,0.91761409,107870.0,107850.0,0.40726636]
[1734446897030,2.03835045,107870.0,107850.0,0.40726636]
[1734446897436,2.39915045,107870.0,107850.0,0.04646636]
[1734446897736,0.046354,107860.0,107850.0,0.00011036]
[1734446897925,0.20107123,107860.0,107850.0,0.00011036]
[1734446898132,2.03835045,107870.0,107850.0,0.04646736]
[1734446898338,2.03835045,107870.0,107850.0,0.40726736]
[1734446898635,2.03835045,107870.0,107850.0,0.40726436]
[1734446899133,0.87126409,107870.0,107860.0,0.407154]
[1734446899340,0.91761309,107870.0,107860.0,0.3608]
[1734446899539,1.43313032,107870.0,107850.0,0.04646636]
[1734446899738,2.14671768,107870.0,107850.0,0.00011036]
[1734446899927,0.046354,107860.0,107850.0,0.00011036]
[1734446900723,0.20107123,107860.0,107850.0,0.00011036]
[1734446900928,0.56187123,107860.0,107850.0,0.00011036]
[1734446901324,0.046358,107850.0,107840.0,0.01386003]
[1734446901632,0.3608,107850.0,107820.0,0.3608]
[1734446901834,1.04226409,107870.0,107840.0,0.40716]
[1734446902044,1.04226409,107870.0,107860.0,0.046354]
[1734446902231,2.16300045,107870.0,107860.0,0.046354]
[1734446902434,2.16300045,107870.0,107860.0,0.40724607]
[1734446902732,1.99200045,107870.0,107860.0,0.40724607]
[1734446903333,1.99200045,107870.0,107860.0,0.04644607]
[1734446903841,0.87126409,107870.0,107860.0,0.04644607]
[1734446904140,1.43313032,107870.0,107860.0,9.207e-05]
[1734446904336,1.27841309,107870.0,107860.0,9.207e-05]
[1734446904537,2.03834945,107870.0,107860.0,0.04644607]
[1734446904727,2.03834945,107870.0,107860.0,0.40724607]
[1734446904728,1.99200045,107870.0,107860.0,0.40724607]
[1734446904933,1.99200045,107870.0,107860.0,0.04644607]
[1734446905137,2.03834945,107870.0,107860.0,0.04644607]
[1734446905340,1.99200045,107870.0,107860.0,0.04644607]
[1734446905641,1.99200045,107870.0,107860.0,0.40724607]
[1734446905839,1.99200045,107870.0,107860.0,0.42497287]
[1734446908646,0.76011204,107870.0,107860.0,0.5796901]
[1734446910437,0.76011204,107870.0,107860.0,0.42497287]
[1734446911036,0.76011204,107870.0,107860.0,0.06417287]
[1734446911244,0.76011204,107870.0,107860.0,0.01781887]
[1734446911742,0.046358,107850.0,107830.0,0.3608]
[1734446911943,0.04636,107850.0,107830.0,0.01752769]
[1734446912146,1.12073636,107850.0,107840.0,0.046362]
[1734446912338,1.8808484,107870.0,107850.0,0.046357]
[1734446912543,1.9271984,107870.0,107850.0,0.407157]
[1734446912741,0.76011204,107870.0,107860.0,6.562e-05]
[1734446913351,1.8808484,107870.0,107860.0,0.40721962]
[1734446914147,1.8808484,107870.0,107860.0,6.562e-05]
[1734446914343,1.8808484,107870.0,107860.0,0.04641962]
[1734446915044,1.8808484,107870.0,107860.0,0.40721962]
[1734446916145,0.75366402,107870.0,107860.0,0.56193685]
[1734446916333,0.71296992,107870.0,107860.0,0.40721962]
[1734446917043,0.64754992,107870.0,107860.0,0.40721962]
[1734446919442,0.64754992,107870.0,107860.0,0.42497303]
[1734446919646,0.64754992,107870.0,107860.0,0.06417303]
[1734446920142,0.64754992,107870.0,107860.0,0.01781903]
[1734446920839,0.69389892,107870.0,107860.0,0.01781903]
[1734446921147,1.76828628,107870.0,107860.0,0.06417303]
[1734446921547,1.76828628,107870.0,107860.0,0.42497303]
[1734446921750,0.64754992,107870.0,107860.0,0.42497303]
[1734446921938,0.64754992,107870.0,107860.0,0.57969026]
[1734446922139,0.64754992,107870.0,107860.0,0.43366484]
[1734446922140,0.59271445,107870.0,107860.0,0.43366484]
[1734446922341,0.50418743,107870.0,107860.0,0.57969026]
[1734446922549,0.46250404,107870.0,107860.0,0.58838207]
[1734446922750,0.46250404,107870.0,107860.0,0.43366484]
[1734446923051,0.46250404,107870.0,107860.0,0.42497303]
[1734446923543,0.39701404,107870.0,107860.0,0.42497303]
[1734446924138,0.39701404,107870.0,107860.0,0.87969026]
[1734446924542,0.39701404,107870.0,107860.0,0.57969026]
[1734446924737,0.39701404,107870.0,107860.0,0.43366484]
[1734446924940,0.33128404,107870.0,107860.0,0.57969026]
[1734446925142,0.18704404,107870.0,107860.0,0.87969026]
[1734446925446,0.18704404,107870.0,107860.0,0.42497303]
[1734446925649,0.18704404,107870.0,107860.0,0.43366484]
[1734446926647,0.18704404,107870.0,107860.0,0.42497303]
[1734446926845,0.18704404,107870.0,107860.0,0.43366484]
[1734446927039,1.3077804,107870.0,107860.0,0.42497303]
[1734446927442,0.18704404,107870.0,107860.0,0.42497303]
[1734446927636,0.15467404,107870.0,107860.0,0.87969026]
[1734446927950,0.00723521,107870.0,107860.0,1.05169026]
[1734446928249,0.00723521,107870.0,107860.0,1.06038207]
[1734446928653,0.00723521,107870.0,107860.0,0.75169026]
[1734446928850,0.00723521,107870.0,107860.0,1.06038207]
[1734446929040,0.00723521,107870.0,107860.0,1.05169026]
[1734446930547,0.00723521,107870.0,107860.0,0.75169026]
[1734446930737,1.12797157,107870.0,107860.0,0.42497303]
[1734446930943,0.00723521,107870.0,107860.0,0.42497303]
[1734446931345,0.00257505,107870.0,107860.0,0.57969026]
[1734446931651,0.00257505,107870.0,107860.0,0.44310298]
[1734446933947,1.12331141,107870.0,107860.0,0.44310298]
[1734446934260,1.12331141,107870.0,107860.0,0.08230298]
[1734446934656,1.12331141,107870.0,107860.0,0.44310298]
[1734446934847,1.12331141,107870.0,107860.0,0.59782021]
[1734446935558,1.12331141,107870.0,107860.0,0.5791316]
[1734446935948,1.12331141,107870.0,107860.0,0.53379687]
[1734446936548,1.12331141,107870.0,107860.0,0.06417303]
[1734446936857,1.28501141,107870.0,107860.0,0.51566692]
[1734446938054,0.16427505,107870.0,107860.0,0.51566692]
[1734446938954,1.28501141,107870.0,107860.0,1.06478974]
[1734446939152,1.28501141,107870.0,107860.0,0.51566692]
[1734446940458,1.28501141,107870.0,107860.0,1.06478974]
[1734446941255,1.28501141,107870.0,107860.0,1.1248187]
[1734446941646,1.23290248,107870.0,107860.0,1.1248187]
[1734446941855,1.19121533,107870.0,107860.0,1.1248187]
[1734446942253,1.19121533,107870.0,107860.0,1.67395818]
[1734446942555,1.19121533,107870.0,107860.0,1.66526637]
[1734446942752,1.19121533,107870.0,107860.0,1.66526075]
[1734446942953,1.19121533,107870.0,107860.0,0.61330689]
[1734446943153,1.19121533,107870.0,107860.0,0.62186061]
[1734446943154,0.43127897,107870.0,107860.0,0.62186061]
[1734446943354,0.43127897,107870.0,107860.0,0.27834092]
[1734446943547,0.07047897,107870.0,107860.0,0.046354]
[1734446944350,0.07047897,107870.0,107860.0,0.0464368]
[1734446944754,0.07047897,107870.0,107860.0,0.13713069]
[1734446944950,1.19121533,107870.0,107860.0,0.13713069]
[1734446945362,1.19121533,107870.0,107860.0,0.15475635]
[1734446946264,1.19121533,107870.0,107860.0,0.51555635]
[1734446946658,1.19121533,107870.0,107860.0,0.15475635]
[1734446946850,0.07047897,107870.0,107860.0,0.15475635]
[1734446947056,1.19121533,107870.0,107860.0,0.51555635]
[1734446947252,1.19121533,107870.0,107860.0,0.15475635]
[1734446948857,0.47762797,107870.0,107860.0,0.66815461]
[1734446949162,0.046358,107850.0,107840.0,0.65046175]
[1734446949466,0.046358,107850.0,107840.0,0.046362]
[1734446949467,0.407158,107850.0,107840.0,0.046362]
[1734446949662,0.407158,107850.0,107830.0,0.01712252]
[1734446949663,0.3608,107850.0,107830.0,0.01712252]
[1734446949864,0.5387,107840.0,107830.0,0.13705589]
[1734446950057,0.5387,107840.0,107830.0,0.18349072]
[1734446950370,0.98316141,107840.0,107830.0,0.18349072]
[1734446950954,0.98316141,107840.0,107830.0,0.13712772]
[1734446951273,0.80526141,107840.0,107830.0,0.04643383]
[1734446951569,0.80526141,107840.0,107830.0,0.13712772]
[1734446951763,0.75313428,107840.0,107830.0,0.13712772]
[1734446952566,0.79949628,107840.0,107830.0,0.13712772]
[1734446952755,0.79949628,107840.0,107830.0,0.04643383]
[1734446953154,1.16029628,107840.0,107830.0,0.04643383]
[1734446953367,0.79949628,107840.0,107830.0,0.04643383]
[1734446953569,0.75313428,107840.0,107830.0,0.04643383]
[1734446954662,0.79949628,107840.0,107830.0,0.04643383]
[1734446954879,0.75313428,107840.0,107830.0,0.04643383]
[1734446955573,0.75313428,107840.0,107830.0,0.13712772]
[1734446956373,1.16029628,107840.0,107830.0,0.04643383]
[1734446956572,0.79949628,107840.0,107830.0,0.04643383]
[1734446956773,0.75313428,107840.0,107830.0,0.13712772]
[1734446957161,0.75313428,107840.0,107830.0,0.09069389]
[1734446957373,0.75313428,107840.0,107830.0,0.13705589]
[1734446957774,0.75313428,107840.0,107830.0,0.49785589]
[1734446958268,0.75313428,107840.0,107830.0,0.49797238]
[1734446959080,0.75313428,107840.0,107830.0,0.13717238]
[1734446960169,1.16029628,107840.0,107830.0,0.00011649]
[1734446960570,1.16029628,107840.0,107810.0,0.046375]
[1734446960571,0.046373,107820.0,107810.0,0.046375]
[1734446960761,0.407173,107820.0,107800.0,0.45149389]
[1734446960967,0.407173,107820.0,107800.0,0.49787089]
[1734446961183,1.33769079,107820.0,107800.0,0.49787089]
[1734446961480,1.09231779,107820.0,107810.0,0.13717449]
[1734446961779,0.3608,107860.0,107820.0,0.046371]
[1734446961959,1.49947379,107860.0,107840.0,0.046361]
[1734446962163,1.13867379,107860.0,107840.0,0.54421389]
[1734446962368,1.09231779,107860.0,107850.0,0.046358]
[1734446962569,1.09231779,107860.0,107840.0,0.407161]
[1734446962570,0.385654,107860.0,107840.0,0.407161]
[1734446962776,1.45311779,107860.0,107840.0,0.046361]
[1734446962972,0.407158,107850.0,107840.0,0.046361]
[1734446963270,1.49947279,107860.0,107840.0,0.09272]
[1734446963476,1.13867279,107860.0,107840.0,0.09272]
[1734446963668,1.49947279,107860.0,107840.0,0.18341389]
[1734446963868,1.13867279,107860.0,107850.0,0.3608]
[1734446964068,0.0069108,107880.0,107860.0,0.046354]
[1734446964274,0.0069108,107880.0,107870.0,0.407149]
[1734446964473,0.0532558,107880.0,107870.0,0.046349]
[1734446964671,0.0532558,107880.0,107860.0,0.3608]
[1734446964874,0.0532558,107880.0,107860.0,0.407152]
[1734446965178,0.0532558,107880.0,107870.0,0.046349]
[1734446965569,0.75992859,107880.0,107870.0,0.046349]
[1734446965762,0.75992859,107880.0,107870.0,0.407149]
[1734446967273,0.75992859,107880.0,107870.0,0.046349]
[1734446968370,0.75992859,107880.0,107870.0,0.407149]
[1734446968678,0.0069108,107880.0,107870.0,0.49784289]
[1734446971779,0.0069108,107880.0,107870.0,0.52480375]
[1734446971979,0.0069108,107880.0,107870.0,0.43410986]
[1734446972980,0.0069108,107880.0,107870.0,0.38776086]
[1734446973169,0.0069108,107880.0,107870.0,0.43410986]
[1734446974270,0.0069108,107880.0,107870.0,0.38776086]
[1734446974478,0.0069108,107880.0,107870.0,0.43410986]
[1734446975782,0.0069108,107880.0,107870.0,0.4530247]
[1734446977171,0.0069108,107880.0,107870.0,0.54371859]
[1734446978486,0.0069108,107880.0,107870.0,0.4530247]
[1734446978686,0.0069108,107880.0,107870.0,0.54371859]
[1734446979480,0.04645247,107890.0,107870.0,0.49736959]
[1734446979677,0.13703889,107880.0,107870.0,0.02696086]
[1734446979876,0.32853889,107880.0,107860.0,0.407152]
[1734446980074,0.99086279,107880.0,107860.0,0.49784589]
[1734446980476,0.99086279,107880.0,107860.0,0.49784489]
[1734446980670,1.03721079,107880.0,107850.0,0.84550374]
[1734446980873,1.03721079,107880.0,107850.0,0.84752185]
[1734446980874,0.046351,107870.0,107850.0,0.84752185]
[1734446981101,0.046351,107870.0,107850.0,0.89185874]
[1734446981290,0.94451779,107880.0,107860.0,0.45149389]
[1734446981473,0.99086379,107880.0,107860.0,0.45149389]
[1734446981670,1.03721179,107880.0,107860.0,0.49784489]
[1734446981883,0.046351,107870.0,107850.0,0.42536685]
[1734446982071,0.046351,107870.0,107850.0,0.51606074]
[1734446982277,0.79936879,107870.0,107850.0,0.51606074]
[1734446982778,0.84572079,107870.0,107850.0,0.42536685]
[1734446982985,0.046354,107860.0,107850.0,0.02705306]
[1734446983284,0.32854789,107860.0,107850.0,0.02705306]
[1734446983481,0.68934789,107860.0,107850.0,0.02705306]
[1734446983682,0.32854789,107860.0,107850.0,0.02705306]
[1734446984186,0.237854,107860.0,107850.0,0.07341106]
[1734446984373,0.75301779,107860.0,107850.0,0.16410495]
[1734446985184,0.75301779,107870.0,107850.0,0.61559884]
[1734446985386,0.75301779,107870.0,107860.0,0.49784389]
[1734446985685,0.1915,107880.0,107860.0,0.49784389]
[1734446985887,0.1915,107880.0,107870.0,0.49784289]
[1734446986286,0.75312926,107890.0,107870.0,0.407149]
[1734446986876,0.75312926,107890.0,107880.0,0.407145]
[1734446987179,0.00011147,107890.0,107880.0,0.58853278]
[1734446987379,0.00011147,107890.0,107880.0,0.49783889]
[1734446987584,0.00011147,107890.0,107880.0,0.68861437]
[1734446987784,0.00011147,107890.0,107880.0,0.59792048]
[1734446989489,0.49794636,107890.0,107880.0,7.548e-05]
[1734446989674,0.31164636,107890.0,107880.0,7.548e-05]
[1734446989879,0.67244636,107890.0,107880.0,7.548e-05]
[1734446990187,0.86594636,107890.0,107880.0,7.548e-05]
[1734446990483,0.50514636,107890.0,107880.0,7.548e-05]
[1734446990685,0.86594636,107890.0,107880.0,7.548e-05]
[1734446990878,0.41445247,107890.0,107880.0,7.548e-05]
[1734446991280,0.86594636,107890.0,107880.0,7.548e-05]
[1734446992380,0.77525247,107890.0,107880.0,7.548e-05]
[1734446992577,0.77525247,107890.0,107880.0,0.04642048]
[1734446992786,0.50514636,107890.0,107880.0,0.04642048]
[1734446992991,0.77525247,107890.0,107880.0,0.04642048]
[1734446993480,0.41445247,107890.0,107880.0,0.04642048]
[1734446993882,1.16747026,107890.0,107880.0,0.04642048]
[1734446994291,1.25816415,107890.0,107880.0,0.04642048]
[1734446994497,1.42546415,107890.0,107880.0,0.04642048]
[1734446995085,1.06466415,107890.0,107880.0,0.04642048]
[1734446995287,1.33477026,107890.0,107880.0,0.04642048]
[1734446995481,0.97397026,107890.0,107880.0,0.04642048]
[1734446995684,1.33477026,107890.0,107880.0,0.04642048]
[1734446996895,1.42546415,107890.0,107880.0,0.04642048]
[1734446997189,0.67244636,107890.0,107880.0,7.548e-05]
[1734446997695,0.046345,107880.0,107870.0,0.07417709]
[1734446997885,0.407145,107880.0,107870.0,0.07417709]
[1734446998207,0.49783889,107880.0,107870.0,0.07417709]
[1734446998490,0.75294231,107880.0,107870.0,0.07417709]
[1734446998683,0.75294231,107880.0,107870.0,0.07427216]
[1734446998989,0.70083555,107880.0,107870.0,0.44375662]
[1734446999290,0.15468148,107890.0,107880.0,0.046345]
[1734446999595,2.67916949,107900.0,107880.0,0.3608]
[1734446999781,2.31836949,107900.0,107890.0,0.046341]
[1734446999982,2.40906338,107900.0,107890.0,0.046341]
[1734447000182,3.10989893,107900.0,107890.0,0.046341]
[1734447000687,3.01920504,107900.0,107890.0,0.046341]
[1734447001082,3.10989893,107900.0,107890.0,0.046341]
[1734447001395,2.36272538,107900.0,107880.0,0.3608]
[1734447001686,2.36272538,107900.0,107880.0,0.407145]
[1734447001687,0.046341,107890.0,107880.0,0.407145]
[1734447001990,0.13703489,107890.0,107880.0,0.046345]
[1734447002288,0.046341,107890.0,107880.0,0.046345]
[1734447002897,0.046341,107890.0,107870.0,0.38872316]
[1734447002898,0.046345,107880.0,107870.0,0.38872316]
[1734447003087,0.13703889,107880.0,107870.0,0.38872316]
[1734447003280,0.83787444,107880.0,107870.0,0.38872316]
[1734447003686,0.83787444,107880.0,107870.0,0.02792316]
[1734447004091,0.74718055,107880.0,107870.0,0.07427216]
[1734447005293,0.70083555,107880.0,107870.0,0.07427216]
[1734447005593,0.70083555,107880.0,107870.0,0.43507216]
[1734447005798,2.5060285,107900.0,107890.0,0.046341]
[1734447006092,2.08993149,107900.0,107890.0,0.407141]
[1734447008693,2.13626749,107900.0,107890.0,0.3608]
[1734447009890,2.08993149,107900.0,107890.0,0.3608]
[1734447010090,2.13626749,107900.0,107890.0,0.3608]
[1734447010596,2.22696138,107900.0,107890.0,0.3608]
[1734447010902,2.13627049,107900.0,107880.0,0.794044]
[1734447011193,2.08993149,107900.0,107890.0,0.046341]
[1734447011395,2.08993149,107900.0,107890.0,0.49783489]
[1734447011605,2.08993149,107900.0,107890.0,0.407141]
[1734447011791,2.08993149,107900.0,107890.0,0.49783489]
[1734447012187,2.08993149,107900.0,107890.0,0.407141]
[1734447012392,2.13626749,107900.0,107880.0,0.91141332]
[1734447012601,2.08993149,107900.0,107890.0,0.046341]
[1734447012790,2.08993149,107900.0,107890.0,0.407141]
[1734447012988,2.08993149,107900.0,107890.0,0.49783489]
[1734447013191,2.08993149,107900.0,107880.0,0.45991843]
[1734447013492,0.046341,107890.0,107880.0,0.02667643]
[1734447013698,0.046341,107890.0,107870.0,0.58884307]
[1734447013902,0.046341,107890.0,107870.0,0.67953596]
[1734447014292,3.37820404,107900.0,107880.0,0.49783789]
[1734447014587,3.37820404,107900.0,107880.0,0.49783689]
[1734447014588,2.49706849,107900.0,107880.0,0.49783689]
[1734447014794,2.49706849,107900.0,107880.0,0.407143]
[1734447015301,2.49706849,107900.0,107880.0,0.54417889]
[1734447015502,2.08993149,107900.0,107890.0,0.046341]
[1734447015797,2.08993149,107900.0,107890.0,0.49783489]
[1734447015996,2.08993149,107900.0,107890.0,0.68803489]
[1734447016699,2.03784172,107900.0,107890.0,0.88603264]
[1734447016902,2.03784172,107900.0,107890.0,1.17735026]
[1734447017098,2.03784172,107900.0,107890.0,0.87735026]
[1734447017594,2.03784172,107900.0,107890.0,1.17735026]
[1734447017787,0.90970189,107900.0,107890.0,1.17723489]
[1734447017988,0.90970189,107900.0,107890.0,0.87734316]
[1734447018299,0.90970189,107900.0,107890.0,0.98814316]
[1734447018489,0.90970189,107900.0,107890.0,0.98803489]
[1734447018800,0.90970189,107900.0,107890.0,0.68811509]
[1734447019594,0.90970189,107900.0,107890.0,0.98811509]
[1734447019793,0.67816206,107900.0,107890.0,0.98988862]
[1734447020195,0.62756206,107900.0,107890.0,0.98988862]
[1734447020399,0.57295458,107900.0,107890.0,0.98988862]
[1734447020795,0.57295458,107900.0,107890.0,0.68988862]
[1734447020995,0.57295458,107900.0,107890.0,0.70819426]
[1734447023594,0.57295458,107900.0,107890.0,0.73173852]
[1734447023790,0.57295458,107900.0,107890.0,0.37093852]
[1734447024100,0.57295458,107900.0,107890.0,0.18073852]
[1734447024893,0.57295458,107900.0,107890.0,0.54153852]
[1734447026791,0.57295458,107900.0,107890.0,0.18073852]
[1734447028398,0.98009058,107900.0,107890.0,0.02549905]
[1734447028592,0.98009058,107900.0,107870.0,0.37928153]
[1734447028593,0.046345,107890.0,107870.0,0.10917542]
[1734447028793,0.5405,107880.0,107860.0,0.45149389]
[1734447028991,0.5405,107880.0,107870.0,0.09069389]
[1734447029603,0.1797,107880.0,107870.0,0.58862958]
[1734447029903,1.58200639,107920.0,107910.0,0.046332]
[1734447030107,1.58200639,107920.0,107910.0,0.04642501]
[1734447030297,1.98913439,107920.0,107900.0,0.046336]
[1734447030500,0.3608,107910.0,107900.0,0.046336]
[1734447030699,1.6288544,107920.0,107900.0,0.046336]
[1734447030999,1.98913439,107920.0,107900.0,0.046334]
[1734447031197,1.62833439,107920.0,107900.0,0.046334]
[1734447031397,1.62833439,107920.0,107910.0,0.00011084]
[1734447031598,1.98913439,107920.0,107910.0,0.00011084]
[1734447031803,2.18753439,107920.0,107910.0,0.00011084]
[1734447032805,2.18753439,107920.0,107910.0,0.04644284]
[1734447032806,2.88827693,107920.0,107910.0,0.04644284]
[1734447033007,3.07037693,107920.0,107910.0,0.04644284]
[1734447033305,2.36963439,107920.0,107900.0,0.046334]
[1734447033512,0.3608,107910.0,107890.0,0.00868202]
[1734447033804,0.407133,107910.0,107890.0,0.00868202]
[1734447034002,0.407133,107910.0,107900.0,0.046336]
[1734447034301,2.0093954,107920.0,107900.0,0.40723408]
[1734447034505,0.66330639,107920.0,107910.0,0.13702589]
[1734447034705,0.33994254,107930.0,107910.0,0.41581102]
[1734447034908,0.13701889,107930.0,107910.0,0.046332]
[1734447035102,1.65807377,107940.0,107920.0,0.046327]
[1734447035412,0.407124,107930.0,107920.0,0.046327]
[1734447035903,0.49781789,107930.0,107910.0,0.046331]
[1734447036109,0.49782189,107920.0,107900.0,0.00010108]
[1734447036310,0.046328,107920.0,107910.0,0.046332]
[1734447036516,0.407128,107920.0,107910.0,0.046332]
[1734447037902,0.974128,107920.0,107910.0,0.046332]
[1734447038103,0.046332,107910.0,107900.0,0.00010108]
[1734447038306,0.046336,107900.0,107890.0,0.6512024]
[1734447039005,0.38627854,107900.0,107890.0,0.6512024]
[1734447039198,0.33994254,107900.0,107890.0,0.6512024]
[1734447039399,0.38627854,107900.0,107890.0,0.65127382]
[1734447039603,0.49782989,107900.0,107890.0,0.55016528]
[1734447039801,0.38627854,107900.0,107890.0,0.04641242]
[1734447040314,0.33994254,107900.0,107890.0,0.59660232]
[1734447040517,0.33994254,107900.0,107890.0,0.13710631]
[1734447040909,0.33994254,107900.0,107890.0,0.05509444]
[1734447041124,0.33994254,107900.0,107890.0,0.49790631]
[1734447041614,0.95327254,107920.0,107890.0,0.49790631]